fUST/lending_fUST_20250407
["ID","MTS","AMOUNT","RATE_DAILY","PERIOD"]
[357325874,1744007450654,-500.0,0.0003863,7]
[357325876,1744007450665,-500.0,0.0003863,7]
[357325877,1744007450676,-500.0,0.0003863,7]
[357325880,1744007450686,-500.0,0.0003863,7]
[357325882,1744007450697,-500.0,0.0003863,7]
[357325884,1744007450707,-500.0,0.0003863,7]
[357325886,1744007450716,-500.0,0.0003863,7]
[357325888,1744007450726,-500.0,0.0003863,7]
[357325890,1744007450736,-500.0,0.0003863,7]
[357325892,1744007450746,-500.0,0.0003863,7]
[357325894,1744007450760,-500.0,0.0003863,7]
[357325896,1744007450769,-346.06198665,0.0003863,7]
[357325898,1744007450778,-500.0,0.0003863,7]
[357325900,1744007450788,-500.0,0.0003863,7]
[357325902,1744007450797,-500.0,0.0003863,7]
[357325904,1744007450807,-1107.37,0.0003863,7]
[357325906,1744007450817,-500.0,0.0003863,7]
[357325908,1744007450827,-500.0,0.0003863,7]
[357325910,1744007450837,-500.0,0.0003863,7]
[357325912,1744007450847,-500.0,0.0003863,7]
[357325914,1744007450856,-1447.2,0.0003863,7]
[357325916,1744007450866,-500.0,0.0003863,7]
[357325918,1744007450876,-500.0,0.0003863,7]
[357325920,1744007450885,-151.0,0.0003863,14]
[357325922,1744007450895,-151.0,0.0003863,14]
[357325924,1744007450904,-513.43,0.0003863,7]
[357325926,1744007450914,-151.0,0.0003863,14]
[357325928,1744007450923,-151.0,0.0003863,14]
[357325930,1744007450933,-151.0,0.0003863,14]
[357325932,1744007450942,-151.0,0.0003863,14]
[357325934,1744007450951,-151.0,0.0003863,14]
[357325936,1744007450960,-500.0,0.0003863,7]
[357325938,1744007450970,-151.0,0.0003863,14]
[357325940,1744007450980,-151.0,0.0003863,14]
[357325942,1744007450989,-151.0,0.0003863,14]
[357325944,1744007450999,-151.0,0.0003863,14]
[357325946,1744007451011,-151.0,0.0003863,14]
[357325948,1744007451020,-500.0,0.0003863,7]
[357325950,1744007451030,-151.0,0.0003863,14]
[357325952,1744007451039,-194.317627,0.0003863,14]
[357325954,1744007451050,-151.0,0.0003863,14]
[357325956,1744007451059,-151.0,0.0003863,14]
[357325958,1744007451069,-151.0,0.0003863,14]
[357325960,1744007451079,-180.109397,0.0003863,14]
[357325962,1744007451089,-566.61,0.0003863,7]
[357325964,1744007451101,-500.0,0.0003863,7]
[357325966,1744007451112,-500.0,0.0003863,7]
[357325968,1744007451122,-939.19,0.0003863,7]
[357325970,1744007451131,-500.0,0.0003863,7]
[357325972,1744007451140,-1423.54,0.0003863,7]
[357325974,1744007451150,-508.13393574,0.0003863,7]
[357325976,1744007451160,-2008.01,0.0003863,7]
[357325978,1744007451170,-500.0,0.0003863,7]
[357325980,1744007451179,-223.60337829,0.0003863,7]
[357325982,1744007451188,-1800.94,0.0003863,7]
[357325984,1744007451198,-901.74,0.0003863,7]
[357325986,1744007451207,-500.0,0.0003863,7]
[357325988,1744007451216,-500.0,0.0003863,7]
[357325990,1744007451226,-500.0,0.0003863,7]
[357325992,1744007451235,-561.03876513,0.0003863,7]
[357325994,1744007451244,-500.0,0.0003863,7]
[357325996,1744007451254,-749.66,0.0003863,7]
[357325998,1744007451266,-500.0,0.0003863,7]
[357326000,1744007451276,-500.0,0.0003863,7]
[357326002,1744007451285,-500.0,0.0003863,7]
[357326004,1744007451295,-500.0,0.0003863,7]
[357326006,1744007451305,-500.0,0.0003863,7]
[357326008,1744007451317,-411.23992677,0.0003863,7]
[357326010,1744007451327,-500.0,0.0003863,7]
[357326012,1744007451337,-500.0,0.0003863,7]
[357326014,1744007451347,-500.0,0.0003863,7]
[357326016,1744007451357,-500.0,0.0003863,7]
[357326018,1744007451366,-697.53,0.0003863,7]
[357326020,1744007451376,-500.0,0.0003863,7]
[357326022,1744007451385,-934.77,0.0003863,7]
[357326023,1744007451395,-500.0,0.0003863,7]
[357326026,1744007451405,-500.0,0.0003863,7]
[357326027,1744007451415,-500.0,0.0003863,7]
[357326029,1744007451425,-500.0,0.0003863,7]
[357326032,1744007451435,-500.0,0.0003863,7]
[357326033,1744007451445,-500.0,0.0003863,7]
[357326035,1744007451454,-508.28059457,0.0003863,7]
[357326037,1744007451464,-500.0,0.0003863,7]
[357326039,1744007451474,-490.919075,0.0003863,2]
[357326041,1744007451484,-490.919075,0.0003863,2]
[357326043,1744007451494,-1984.09,0.0003863,7]
[357326045,1744007451503,-490.919075,0.0003863,2]
[357326047,1744007451515,-490.919075,0.0003863,2]
[357326049,1744007451525,-500.0,0.0003863,7]
[357326051,1744007451534,-490.919075,0.0003863,2]
[357326053,1744007451543,-935.62,0.0003863,7]
[357326055,1744007451555,-946.46,0.0003863,7]
[357326057,1744007451565,-500.0,0.0003863,7]
[357326059,1744007451574,-490.919075,0.0003863,2]
[357326061,1744007451584,-490.919075,0.0003863,2]
[357326063,1744007451593,-490.919075,0.0003863,2]
[357326065,1744007451602,-490.919075,0.0003863,2]
[357326067,1744007451612,-490.919075,0.0003863,2]
[357326069,1744007451621,-500.0,0.0003863,7]
[357326071,1744007451631,-515.1,0.0003863,7]
[357326073,1744007451641,-512.76,0.0003863,7]
[357326075,1744007451652,-500.0,0.0003863,7]
[357326077,1744007451662,-151.0,0.0003863,14]
[357326079,1744007451675,-690.44,0.0003863,7]
[357326081,1744007451685,-151.0,0.0003863,14]
[357326083,1744007451695,-151.0,0.0003863,14]
[357326085,1744007451708,-151.0,0.0003863,14]
[357326087,1744007451718,-151.0,0.0003863,14]
[357326089,1744007451727,-151.0,0.0003863,14]
[357326091,1744007451737,-164.631112,0.0003863,14]
[357326093,1744007451748,-151.0,0.0003863,14]
[357326095,1744007451761,-169.205063,0.0003863,14]
[357326097,1744007451771,-500.0,0.0003863,7]
[357326099,1744007451781,-151.0,0.0003863,14]
[357326100,1744007451791,-151.0,0.0003863,14]
[357326102,1744007451802,-151.0,0.0003863,14]
[357326104,1744007451813,-500.0,0.0003863,7]
[357326106,1744007451822,-151.0,0.0003863,14]
[357326108,1744007451833,-151.0,0.0003863,14]
[357326110,1744007451852,-500.0,0.0003863,7]
[357326112,1744007451874,-151.0,0.0003863,14]
[357326114,1744007451896,-272.994245,0.0003863,14]
[357326116,1744007451919,-838.21,0.0003863,7]
[357326118,1744007451941,-500.0,0.0003863,7]
[357326120,1744007451964,-500.0,0.0003863,7]
[357326122,1744007451987,-847.87,0.0003863,7]
[357326124,1744007452012,-500.0,0.0003863,7]
[357326126,1744007452035,-1589.02,0.0003863,7]
[357326128,1744007452057,-500.0,0.0003863,7]
[357326130,1744007452079,-500.0,0.0003863,7]
[357326132,1744007452101,-500.0,0.0003863,7]
[357326134,1744007452123,-500.0,0.0003863,7]
[357326136,1744007452144,-1158.58,0.0003863,7]
[357326138,1744007452168,-500.0,0.0003863,7]
[357326140,1744007452188,-952.13,0.0003863,7]
[357326142,1744007452197,-500.0,0.0003863,7]
[357326144,1744007452206,-500.0,0.0003863,7]
[357326146,1744007452215,-573.45,0.0003863,7]
[357326148,1744007452225,-500.0,0.0003863,7]
[357326150,1744007452234,-500.0,0.0003863,7]
[357326152,1744007452243,-500.0,0.0003863,7]
[357326154,1744007452253,-1057.47,0.0003863,7]
[357326156,1744007452264,-500.0,0.0003863,7]
[357326158,1744007452273,-500.0,0.0003863,7]
[357326160,1744007452282,-500.0,0.0003863,7]
[357326162,1744007452291,-535.3132225,0.0003863,7]
[357326164,1744007452300,-500.0,0.0003863,7]
[357326165,1744007452310,-500.0,0.0003863,7]
[357326167,1744007452320,-500.0,0.0003863,7]
[357326169,1744007452329,-500.0,0.0003863,7]
[357326171,1744007452339,-500.0,0.0003863,7]
[357326173,1744007452348,-500.0,0.0003863,7]
[357326175,1744007452358,-694.43,0.0003863,7]
[357326177,1744007452368,-507.92657348,0.0003863,7]
[357326179,1744007452378,-564.30373366,0.0003863,7]
[357326181,1744007452387,-500.0,0.0003863,7]
[357326183,1744007452397,-500.0,0.0003863,7]
[357326185,1744007452406,-500.0,0.0003863,7]
[357326187,1744007452416,-500.0,0.0003863,7]
[357326189,1744007452425,-571.11,0.0003863,7]
[357326191,1744007452435,-500.0,0.0003863,7]
[357326193,1744007452444,-500.0,0.0003863,7]
[357326195,1744007452454,-500.0,0.0003863,7]
[357326197,1744007452463,-500.0,0.0003863,7]
[357326199,1744007452472,-528.03,0.0003863,7]
[357326201,1744007452482,-500.0,0.0003863,7]
[357326203,1744007452491,-566.82585552,0.0003863,7]
[357326205,1744007452499,-613.99,0.0003863,7]
[357326220,1744007452633,-500.0,0.0003863,7]
[357326222,1744007452660,-500.0,0.0003863,7]
[357326224,1744007452670,-151.0,0.0003863,14]
[357326226,1744007452680,-151.0,0.0003863,14]
[357326228,1744007452690,-1665.49,0.0003863,7]
[357326230,1744007452700,-151.0,0.0003863,14]
[357326233,1744007452710,-151.0,0.0003863,14]
[357326235,1744007452720,-151.0,0.0003863,14]
[357326237,1744007452730,-928.88,0.0003863,7]
[357326239,1744007452740,-500.0,0.0003863,7]
[357326241,1744007452749,-151.0,0.0003863,14]
[357326243,1744007452761,-247.917894,0.0003863,14]
[357326245,1744007452770,-772.18,0.0003863,7]
[357326247,1744007452780,-500.0,0.0003863,7]
[357326249,1744007452789,-500.0,0.0003863,7]
[357326251,1744007452799,-500.0,0.0003863,7]
[357326253,1744007452808,-500.0,0.0003863,7]
[357326255,1744007452818,-500.0,0.0003863,7]
[357326257,1744007452828,-500.0,0.0003863,7]
[357326258,1744007452838,-500.0,0.0003863,7]
[357326260,1744007452847,-1501.09,0.0003863,2]
[357326262,1744007452857,-500.0,0.0003863,7]
[357326264,1744007452866,-500.0,0.0003863,7]
[357326266,1744007452876,-500.0,0.0003863,7]
[357326268,1744007452885,-167.31885813,0.0003863,7]
[357326270,1744007452895,-586.05,0.0003863,7]
[357326272,1744007452905,-500.0,0.0003863,7]
[357326274,1744007452914,-722.91,0.0003863,7]
[357326276,1744007452924,-500.0,0.0003863,7]
[357326278,1744007452934,-611.49330802,0.0003863,7]
[357326280,1744007452943,-1033.34,0.0003863,7]
[357326282,1744007452952,-514.8027569,0.0003863,7]
[357326284,1744007452961,-500.0,0.0003863,7]
[357326286,1744007452971,-500.0,0.0003863,7]
[357326288,1744007452980,-500.0,0.0003863,7]
[357326290,1744007452990,-500.0,0.0003863,7]
[357326292,1744007453000,-500.0,0.0003863,7]
[357326294,1744007453010,-522.77,0.0003863,7]
[357326296,1744007453019,-500.0,0.0003863,7]
[357326298,1744007453029,-500.0,0.0003863,7]
[357326300,1744007453039,-571.83,0.0003863,7]
[357326302,1744007453048,-500.0,0.0003863,7]
[357326304,1744007453058,-500.0,0.0003863,7]
[357326306,1744007453068,-500.0,0.0003863,7]
[357326308,1744007453078,-500.0,0.0003863,7]
[357326310,1744007453088,-500.0,0.0003863,7]
[357326312,1744007453098,-500.0,0.0003863,7]
[357326314,1744007453108,-523.84,0.0003863,7]
[357326316,1744007453118,-151.0,0.0003863,14]
[357326318,1744007453128,-151.0,0.0003863,14]
[357326320,1744007453138,-291.899296,0.0003863,14]
[357326322,1744007453147,-500.0,0.0003863,7]
[357326324,1744007453157,-500.0,0.0003863,7]
[357326326,1744007453166,-542.0750716,0.0003863,7]
[357326328,1744007453176,-500.0,0.0003863,7]
[357326330,1744007453186,-500.0,0.0003863,7]
[357326332,1744007453195,-500.0,0.0003863,7]
[357326334,1744007453205,-500.0,0.0003863,7]
[357326336,1744007453214,-500.0,0.0003863,7]
[357326337,1744007453223,-500.0,0.0003863,7]
[357326339,1744007453233,-500.0,0.0003863,7]
[357326341,1744007453242,-833.69,0.0003863,7]
[357326343,1744007453251,-2025.36,0.0003863,7]
[357326345,1744007453263,-500.0,0.0003863,7]
[357326347,1744007453272,-500.0,0.0003863,7]
[357326349,1744007453281,-550.76622662,0.0003863,7]
[357326351,1744007453290,-500.0,0.0003863,7]
[357326353,1744007453299,-1592.74,0.0003863,7]
[357326354,1744007453308,-500.0,0.0003863,7]
[357326355,1744007453317,-216.01521157,0.0003863,7]
[357326356,1744007453326,-603.67,0.0003863,7]
[357326357,1744007453335,-500.0,0.0003863,7]
[357326358,1744007453345,-2054.09,0.0003863,7]
[357326359,1744007453354,-500.0,0.0003863,7]
[357326360,1744007453363,-500.0,0.0003863,7]
[357326361,1744007453373,-4027.87,0.0003863,7]
[357326362,1744007453382,-1703.64,0.0003863,7]
[357326363,1744007453391,-1206.14,0.0003863,7]
[357326364,1744007453399,-2750.5,0.0003863,7]
[357326365,1744007453409,-500.0,0.0003863,7]
[357326366,1744007453418,-500.0,0.0003863,7]
[357326367,1744007453427,-5383.4,0.0003863,7]
[357326368,1744007453436,-500.0,0.0003863,7]
[357326369,1744007453445,-1044.92,0.0003863,7]
[357326370,1744007453454,-500.0,0.0003863,7]
[357326371,1744007453463,-752.29,0.0003863,7]
[357326372,1744007453472,-16324.2,0.0003863,7]
[357326373,1744007453481,-5668.81,0.0003863,7]
[357326374,1744007453490,-556.96,0.0003863,7]
[357326375,1744007453499,-7826.43,0.0003863,7]
[357326377,1744007453509,-9467.87,0.0003863,7]
[357326379,1744007453518,-500.0,0.0003863,7]
[357326380,1744007453527,-704.24,0.0003863,7]
[357326383,1744007453537,-500.0,0.0003863,7]
[357326384,1744007453546,-500.0,0.0003863,7]
[357326386,1744007453555,-1000.0,0.0003863,7]
[357326388,1744007453565,-2032.66,0.0003863,7]
[357326390,1744007453574,-500.0,0.0003863,7]
[357326392,1744007453584,-500.0,0.0003863,7]
[357326394,1744007453594,-500.0,0.0003863,7]
[357326396,1744007453603,-627.1,0.0003863,7]
[357326398,1744007453613,-500.0,0.0003863,7]
[357326400,1744007453622,-500.0,0.0003863,7]
[357326402,1744007453634,-500.0,0.0003863,7]
[357326404,1744007453644,-500.0,0.0003863,7]
[357326406,1744007453654,-1564.82,0.0003863,7]
[357326408,1744007453665,-1951.0,0.0003863,7]
[357326410,1744007453676,-504.54034001,0.0003863,7]
[357326413,1744007453686,-500.0,0.0003863,7]
[357326414,1744007453696,-720.69,0.0003863,7]
[357326416,1744007453707,-603.99,0.0003863,7]
[357326419,1744007453717,-1960.56,0.0003863,7]
[357326420,1744007453726,-500.0,0.0003863,7]
[357326422,1744007453736,-500.0,0.0003863,7]
[357326424,1744007453746,-1748.88,0.0003863,7]
[357326426,1744007453756,-500.0,0.0003863,7]
[357326428,1744007453768,-2029.77,0.0003863,7]
[357326430,1744007453778,-500.0,0.0003863,7]
[357326432,1744007453789,-500.0,0.0003863,7]
[357326434,1744007453798,-151.0,0.0003863,14]
[357326436,1744007453808,-151.0,0.0003863,14]
[357326438,1744007453819,-1368.39,0.0003863,2]
[357326440,1744007453829,-588.58,0.0003863,7]
[357326442,1744007453839,-601.11,0.0003863,7]
[357326444,1744007453850,-500.0,0.0003863,7]
[357326446,1744007453860,-2441.632005,0.0003863,14]
[357326448,1744007453872,-2441.632005,0.0003863,14]
[357326450,1744007453883,-2441.632005,0.0003863,14]
[357326452,1744007453893,-500.0,0.0003863,7]
[357326454,1744007453903,-2441.632005,0.0003863,14]
[357326456,1744007453913,-500.0,0.0003863,7]
[357326458,1744007453922,-2441.632005,0.0003863,14]
[357326460,1744007453933,-2441.632005,0.0003863,14]
[357326462,1744007453943,-2441.632005,0.0003863,14]
[357326464,1744007453953,-2441.632013,0.0003863,14]
[357326466,1744007453965,-1802.77,0.0003863,7]
[357326468,1744007453975,-500.0,0.0003863,7]
[357326470,1744007453986,-638.37,0.0003863,7]
[357326472,1744007453997,-500.0,0.0003863,7]
[357326474,1744007454007,-1000.0,0.0003863,30]
[357326476,1744007454023,-500.0,0.0003863,7]
[357326478,1744007454033,-3642.09,0.0003863,7]
[357326480,1744007454044,-500.0,0.0003863,7]
[357326482,1744007454053,-1347.37,0.0003863,7]
[357326484,1744007454062,-1391.95,0.0003863,7]
[357326486,1744007454072,-500.0,0.0003863,7]
[357326488,1744007454083,-2126.62,0.0003863,7]
[357326490,1744007454092,-796.84,0.0003863,7]
[357326492,1744007454103,-617.31,0.0003863,7]
[357326494,1744007454113,-5186.58,0.0003863,7]
[357326496,1744007454124,-628.21449676,0.0003863,7]
[357326498,1744007454134,-1111.1,0.0003863,7]
[357326500,1744007454144,-500.0,0.0003863,7]
[357326502,1744007454154,-1058.19,0.0003863,7]
[357326504,1744007454164,-423.856704,0.0003863,14]
[357326506,1744007454174,-500.0,0.0003863,7]
[357326508,1744007454184,-423.856704,0.0003863,14]
[357326510,1744007454194,-7684.6,0.0003863,7]
[357326512,1744007454204,-781.69,0.0003863,7]
[357326514,1744007454214,-503.58,0.0003863,7]
[357326516,1744007454223,-500.0,0.0003863,7]
[357326518,1744007454233,-500.0,0.0003863,7]
[357326520,1744007454243,-500.0,0.0003863,7]
[357326522,1744007454253,-423.856704,0.0003863,14]
[357326524,1744007454265,-423.85670146,0.0003863,14]
[357326526,1744007454276,-526.85,0.0003863,7]
[357326528,1744007454287,-500.0,0.0003863,7]
[357326530,1744007454296,-510.60956645,0.0003863,7]
[357326532,1744007454307,-500.0,0.0003863,7]
[357326534,1744007454316,-500.0,0.0003863,7]
[357326536,1744007454326,-6861.13,0.0003863,7]
[357326538,1744007454337,-500.0,0.0003863,7]
[357326540,1744007454346,-500.0,0.0003863,7]
[357326542,1744007454357,-500.0,0.0003863,7]
[357326544,1744007454366,-500.0,0.0003863,7]
[357326546,1744007454376,-500.0,0.0003863,7]
[357326548,1744007454386,-500.0,0.0003863,7]
[357326550,1744007454396,-427.8779057,0.0003863,7]
[357326552,1744007454406,-428.43103355,0.0003863,7]
[357326554,1744007454415,-7716.74,0.0003863,7]
[357326556,1744007454425,-502.88482119,0.0003863,7]
[357326558,1744007454434,-500.0,0.0003863,7]
[357326560,1744007454444,-2269.56,0.0003863,7]
[357326562,1744007454454,-500.0,0.0003863,7]
[357326564,1744007454463,-500.0,0.0003863,7]
[357326566,1744007454474,-4907.12,0.0003863,7]
[357326568,1744007454484,-500.0,0.0003863,7]
[357326570,1744007454493,-504.85,0.0003863,7]
[357326572,1744007454503,-500.0,0.0003863,7]
[357326574,1744007454514,-500.0,0.0003863,7]
[357326576,1744007454523,-500.0,0.0003863,7]
[357326578,1744007454533,-542.23,0.0003863,7]
[357326580,1744007454542,-500.0,0.0003863,7]
[357326582,1744007454552,-2640.34,0.0003863,7]
[357326584,1744007454561,-2111.69,0.0003863,7]
[357326586,1744007454570,-500.0,0.0003863,7]
[357326588,1744007454580,-500.0,0.0003863,7]
[357326590,1744007454590,-500.0,0.0003863,7]
[357326592,1744007454599,-1000.0,0.0003863,3]
[357326594,1744007454609,-2900.21,0.0003863,7]
[357326596,1744007454619,-500.0,0.0003863,7]
[357326598,1744007454628,-500.0,0.0003863,3]
[357326600,1744007454638,-500.0,0.0003863,7]
[357326602,1744007454649,-500.0,0.0003863,7]
[357326604,1744007454659,-754.1,0.0003863,7]
[357326606,1744007454671,-500.0,0.0003863,7]
[357326608,1744007454681,-500.0,0.0003863,7]
[357326610,1744007454691,-582.6,0.0003863,7]
[357326612,1744007454700,-726.72,0.0003863,7]
[357326614,1744007454711,-904.26,0.0003863,7]
[357326616,1744007454720,-500.0,0.0003863,7]
[357326618,1744007454730,-500.0,0.0003863,7]
[357326620,1744007454740,-500.0,0.0003863,7]
[357326622,1744007454750,-853.72,0.0003863,7]
[357326624,1744007454763,-564.13,0.0003863,7]
[357326626,1744007454773,-17236.37,0.0003863,7]
[357326628,1744007454782,-1442.71,0.0003863,7]
[357326630,1744007454792,-520.98,0.0003863,7]
[357326632,1744007454802,-516.72297355,0.0003863,7]
[357326634,1744007454812,-507.2723643,0.0003863,7]
[357326636,1744007454822,-500.0,0.0003863,7]
[357326638,1744007454831,-3459.37,0.0003863,7]
[357326640,1744007454841,-500.0,0.0003863,7]
[357326642,1744007454851,-362.533722,0.0003863,14]
[357326644,1744007454860,-362.533722,0.0003863,14]
[357326646,1744007454870,-586.4265152,0.0003863,7]
[357326648,1744007454880,-500.0,0.0003863,7]
[357326650,1744007454889,-362.533722,0.0003863,14]
[357326652,1744007454900,-500.0,0.0003863,7]
[357326654,1744007454910,-362.533728,0.0003863,14]
[357326656,1744007454919,-500.0,0.0003863,7]
[357326658,1744007454929,-500.0,0.0003863,7]
[357326660,1744007454939,-1195.35,0.0003863,7]
[357326662,1744007454949,-500.0,0.0003863,7]
[357326664,1744007454958,-500.0,0.0003863,7]
[357326666,1744007454968,-500.0,0.0003863,7]
[357326668,1744007454977,-500.0,0.0003863,7]
[357326670,1744007454987,-739.23,0.0003863,7]
[357326672,1744007454996,-500.0,0.0003863,7]
[357326674,1744007455006,-1037.89,0.0003863,7]
[357326676,1744007455019,-931.74,0.0003863,7]
[357326678,1744007455028,-500.0,0.0003863,7]
[357326680,1744007455038,-500.0,0.0003863,7]
[357326682,1744007455047,-500.0,0.0003863,7]
[357326684,1744007455058,-500.0,0.0003863,7]
[357326686,1744007455069,-500.0,0.0003863,7]
[357326688,1744007455078,-500.0,0.0003863,7]
[357326690,1744007455088,-500.0,0.0003863,7]
[357326692,1744007455098,-419.36665037,0.00038662,2]
[357326694,1744007455108,-500.0,0.00038673,5]
[357326696,1744007455118,-500.50504929,0.00038673,5]
[357326698,1744007455127,-500.0,0.00038673,5]
[357326700,1744007455136,-500.0,0.00038673,5]
[357326702,1744007455146,-852.74600693,0.00038767,7]
[357326704,1744007455155,-150.27583741,0.00038767,7]
[357326706,1744007455164,-500.0,0.00038767,7]
[357326708,1744007455173,-500.0,0.00038767,7]
[357326710,1744007455183,-851.83738305,0.00038767,7]
[357326712,1744007455192,-500.0,0.00038767,7]
[357326714,1744007455202,-500.0,0.00038767,7]
[357326716,1744007455212,-500.0,0.00038767,7]
[357326718,1744007455221,-500.0,0.00038767,7]
[357326720,1744007455231,-500.0,0.00038767,7]
[357326722,1744007455240,-500.0,0.00038767,7]
[357326724,1744007455250,-852.6107025,0.00038767,7]
[357326726,1744007455262,-500.0,0.00038767,7]
[357326728,1744007455271,-853.72513193,0.00038767,7]
[357326730,1744007455280,-500.0,0.00038767,7]
[357326732,1744007455290,-1260.0,0.00038871,2]
[357326734,1744007455299,-151.0,0.00038903,14]
[357326736,1744007455309,-500.0,0.00038903,2]
[357326738,1744007455319,-500.0,0.00038903,2]
[357326740,1744007455328,-500.0,0.00038903,2]
[357326742,1744007455338,-500.0,0.00038903,2]
[357326744,1744007455348,-500.0,0.00038903,2]
[357326746,1744007455359,-500.0,0.00038903,2]
[357326748,1744007455368,-500.0,0.00038903,2]
[357326750,1744007455377,-500.0,0.00038903,2]
[357326752,1744007455387,-500.0,0.00038903,2]
[357326754,1744007455396,-500.0,0.00038903,2]
[357326756,1744007455406,-500.0,0.00038903,2]
[357326758,1744007455415,-500.0,0.00038903,2]
[357326760,1744007455425,-500.0,0.00038903,2]
[357326762,1744007455434,-505.19986997,0.00038904,7]
[357326764,1744007455443,-500.0,0.00038904,7]
[357326766,1744007455452,-500.0,0.00038904,7]
[357326768,1744007455475,-500.0,0.00038904,7]
[357326770,1744007455496,-500.0,0.00038904,7]
[357326772,1744007455531,-151.0,0.00038904,14]
[357326774,1744007455598,-151.0,0.00038904,14]
[357326776,1744007455670,-248.11125,0.00038904,14]
[357326778,1744007455704,-500.0,0.00038904,7]
[357326780,1744007455741,-500.0,0.00038904,7]
[357326782,1744007455795,-262.56278554,0.00038904,7]
[357326784,1744007455806,-812.34,0.00038904,7]
[357326786,1744007455816,-500.0,0.00038904,7]
[357326788,1744007455826,-729.06,0.00038904,7]
[357326790,1744007455836,-513.99774563,0.00038904,7]
[357326792,1744007455846,-500.0,0.00038904,7]
[357326794,1744007455855,-500.0,0.00038904,7]
[357326796,1744007455865,-500.0,0.00038904,7]
[357326812,1744007455875,-500.0,0.00038904,7]
[357326815,1744007456031,-500.0,0.00038904,7]
[357326817,1744007456041,-500.0,0.00038904,7]
[357326819,1744007456052,-500.0,0.00038904,7]
[357326821,1744007456062,-500.0,0.00038904,7]
[357326823,1744007456073,-500.0,0.00038904,7]
[357326825,1744007456083,-500.0,0.00038904,7]
[357326827,1744007456093,-736.69,0.00038904,7]
[357326829,1744007456103,-500.0,0.00038904,7]
[357326831,1744007456112,-500.0,0.00038904,7]
[357326833,1744007456122,-500.0,0.00038904,7]
[357326835,1744007456131,-638.44919093,0.00038904,7]
[357326837,1744007456141,-500.0,0.00038904,7]
[357326838,1744007456151,-500.0,0.00038904,7]
[357326839,1744007456160,-500.0,0.00038904,7]
[357326840,1744007456169,-500.0,0.00038904,7]
[357326841,1744007456179,-500.0,0.00038904,7]
[357326843,1744007456189,-500.0,0.00038904,7]
[357326845,1744007456199,-500.0,0.00038904,7]
[357326847,1744007456209,-500.0,0.00038904,7]
[357326849,1744007456218,-200.0,0.00038904,7]
[357326851,1744007456228,-500.0,0.00038904,7]
[357326853,1744007456238,-500.0,0.00038904,7]
[357326855,1744007456248,-500.0,0.00038904,7]
[357326857,1744007456258,-500.0,0.00038904,7]
[357326859,1744007456274,-500.0,0.00038904,7]
[357326861,1744007456283,-500.0,0.00038904,7]
[357326863,1744007456293,-500.0,0.00038904,7]
[357326865,1744007456303,-500.0,0.00038904,7]
[357326867,1744007456312,-500.0,0.00038904,7]
[357326869,1744007456321,-500.0,0.00038904,7]